fUSD/lending_fUSD_20250503
["ID","MTS","AMOUNT","RATE_DAILY","PERIOD"]
[359705843,1746268883615,-450.0,0.00019743,2]
[359705844,1746268883642,-450.0,0.00019743,2]
[359705845,1746268883670,-450.0,0.00019743,2]
[359705846,1746268883697,-450.0,0.00019743,2]
[359705847,1746268883724,-450.0,0.00019743,2]
[359705848,1746268883752,-576.6,0.00019743,2]
[359705849,1746268883779,-594.95,0.00019743,2]
[359705850,1746268883806,-475.65,0.00019743,2]
[359705851,1746268883835,-450.0,0.00019743,2]
[359705852,1746268883861,-450.0,0.00019743,2]
[359705853,1746268883890,-450.0,0.00019743,2]
[359705854,1746268883917,-450.0,0.00019743,2]
[359705855,1746268883946,-1012.53,0.00019743,2]
[359705856,1746268883973,-450.0,0.00019743,2]
[359705857,1746268884000,-450.0,0.00019743,2]
[359705858,1746268884029,-450.0,0.00019743,2]
[359705859,1746268884058,-706.78,0.00019743,2]
[359705860,1746268884086,-450.0,0.00019743,2]
[359705861,1746268884114,-450.0,0.00019743,2]
[359705862,1746268884143,-450.0,0.00019743,2]
[359705863,1746268884173,-450.0,0.00019743,2]
[359705864,1746268884202,-450.0,0.00019743,2]
[359705865,1746268884233,-450.0,0.00019743,2]
[359705866,1746268884261,-489.16,0.00019743,2]
[359705867,1746268884289,-1329.5,0.00019743,2]
[359705868,1746268884318,-450.0,0.00019743,2]
[359705869,1746268884345,-450.0,0.00019743,2]
[359705870,1746268884371,-450.0,0.00019743,2]
[359705871,1746268884399,-1250.66,0.00019743,2]
[359705872,1746268884425,-450.0,0.00019743,2]
[359705873,1746268884451,-450.0,0.00019743,2]
[359705874,1746268884478,-577.03,0.00019743,2]
[359705875,1746268884506,-450.0,0.00019743,2]
[359705876,1746268884534,-450.0,0.00019743,2]
[359705877,1746268884561,-450.0,0.00019743,2]
[359705878,1746268884587,-450.0,0.00019743,2]
[359705879,1746268884614,-631.93,0.00019743,2]
[359705880,1746268884640,-540.47033329,0.00019743,2]
[359705881,1746268884667,-450.0,0.00019743,2]
[359705882,1746268884694,-464.09,0.00019743,2]
[359705883,1746268884722,-450.0,0.00019743,2]
[359705884,1746268884748,-450.0,0.00019743,2]
[359705885,1746268884775,-463.27,0.00019743,2]
[359705886,1746268884801,-3148.19,0.00019743,2]
[359705887,1746268884827,-450.0,0.00019743,2]
[359705888,1746268884860,-508.15,0.00019743,2]
[359705889,1746268884890,-500.0,0.00019743,2]
[359705890,1746268884917,-450.0,0.00019743,2]
[359705891,1746268884945,-450.0,0.00019743,2]
[359705892,1746268884972,-468.08,0.00019743,2]
[359705893,1746268884999,-450.0,0.00019743,2]
[359705894,1746268885027,-477.12,0.00019743,2]
[359705895,1746268885055,-904.56,0.00019743,2]
[359705896,1746268885082,-450.0,0.00019743,2]
[359705897,1746268885108,-450.0,0.00019743,2]
[359705898,1746268885135,-450.0,0.00019743,2]
[359705899,1746268885167,-450.0,0.00019743,2]
[359705900,1746268885194,-450.0,0.00019743,2]
[359705901,1746268885222,-172.868004,0.00019762,2]
[359705902,1746268885250,-164.912197,0.00019762,2]
[359705903,1746268885279,-172.868004,0.00019772,2]
[359705904,1746268885308,-164.912197,0.00019772,2]
[359705905,1746268885336,-500.0,0.00019773,2]
[359705906,1746268885365,-500.0,0.00019773,2]
[359705907,1746268885391,-150.0,0.00019773,2]
[359705908,1746268885422,-150.0,0.00019773,2]
[359705909,1746268885451,-172.868004,0.00019789,2]
[359705910,1746268885480,-172.868004,0.0001979,2]
[359705911,1746268885507,-164.912197,0.0001979,2]
[359705912,1746268885535,-172.868004,0.00019792,2]
[359705913,1746268885563,-164.912197,0.00019792,2]
[359705914,1746268885592,-394.2112028,0.00019799,2]
[359705915,1746268885620,-12500.0,0.00019856,2]
[359705916,1746268885647,-12500.0,0.00019865,2]
[359705917,1746268885675,-11213.79657532,0.00019874,2]
[359705918,1746268886001,-172.868004,0.00019874,2]
[359705919,1746268886022,-164.912197,0.00019874,2]
[359705920,1746268886045,-624.5096,0.00019874,2]
[359705921,1746268886062,-323.91362368,0.00019874,2]
[359705922,1746268886072,-123.92577632,0.00019882,2]
[359705923,1746268886083,-1000.0,0.00019882,2]
[359705924,1746268886101,-523.5476,0.00019882,2]
[359705925,1746268886117,-767.14521035,0.00019882,2]
[359705926,1746268886133,-2500.0,0.00019882,2]
[359705927,1746268886144,-250.0,0.00019882,2]
[359705928,1746268886156,-200.0,0.00019882,2]
[359705929,1746268886171,-1200.0,0.00019882,2]
[359705930,1746268886190,-300.0,0.00019882,2]
[359705931,1746268886201,-450.0,0.00019882,2]
[359705932,1746268886221,-450.0,0.00019882,2]
[359705933,1746268886241,-505.03,0.00019882,2]
[359705934,1746268886252,-450.0,0.00019882,2]
[359705935,1746268886268,-450.0,0.00019882,2]
[359705936,1746268886283,-450.0,0.00019882,2]
[359705937,1746268886294,-450.0,0.00019882,2]
[359705938,1746268886305,-463.64256964,0.00019882,2]
[359705939,1746268886321,-457.88,0.00019882,2]
[359705940,1746268886333,-450.0,0.00019882,2]
[359705941,1746268886547,-1058.82884369,0.00019882,2]
[359705942,1746268886558,-380.99115631,0.00019891,2]
[359705943,1746268886579,-450.0,0.00019891,2]
[359705944,1746268886595,-548.65,0.00019891,2]
[359705945,1746268886606,-450.0,0.00019891,2]
[359705946,1746268886621,-450.0,0.00019891,2]
[359705947,1746268886637,-450.0,0.00019891,2]
[359705948,1746268886652,-450.0,0.00019743,2]
[359705949,1746268886663,-600.86,0.00019891,2]
[359705950,1746268886674,-3553.13,0.00019891,2]
[359705951,1746268886684,-450.0,0.00019891,2]
[359705952,1746268886695,-450.0,0.00019891,2]
[359705953,1746268886714,-450.0,0.00019891,2]
[359705954,1746268886733,-1481.21,0.00019891,2]
[359705955,1746268886751,-473.8258779,0.00019891,2]
[359705956,1746268886761,-607.86,0.00019891,2]
[359705957,1746268886771,-450.0,0.00019891,2]
[359705958,1746268886782,-1053.96,0.00019891,2]
[359705959,1746268886797,-199.51296579,0.00019891,2]
[359705960,1746268886806,-300.48703421,0.000199,2]
[359705961,1746268886818,-450.0,0.000199,2]
[359705962,1746268886829,-556.05,0.000199,2]
[359705963,1746268886844,-450.0,0.000199,2]
[359705964,1746268886864,-2348.63,0.000199,2]
[359705965,1746268886879,-450.0,0.000199,2]
[359705966,1746268886895,-450.0,0.000199,2]
[359705967,1746268886909,-507.26,0.000199,2]
[359705968,1746268886921,-450.0,0.000199,2]
[359705969,1746268886937,-450.0,0.000199,2]
[359705970,1746268886951,-674.81,0.000199,2]
[359705971,1746268886962,-450.0,0.000199,2]
[359705972,1746268886973,-450.0,0.000199,2]
[359705973,1746268886992,-450.0,0.000199,2]
[359705974,1746268887011,-450.0,0.000199,2]
[359705975,1746268887029,-660.26,0.000199,2]
[359705976,1746268887062,-452.82,0.000199,2]
[359705977,1746268887079,-823.08,0.000199,2]
[359705978,1746268887091,-450.0,0.000199,2]
[359705979,1746268887102,-450.0,0.000199,2]
[359705980,1746268887116,-776.60296579,0.000199,2]
[359705981,1746268887126,-172.868004,0.000199,2]
[359705982,1746268887135,-86.03903021,0.000199,2]
[359705983,1746268887150,-273.95332794,0.000199,2]
[359705984,1746268887163,-487.69766311,0.000199,2]
[359705985,1746268887173,-143.70900895,0.000199,2]
[359705986,1746268887192,-21.20318805,0.000199,2]
[359705987,1746268887201,-206.00517044,0.000199,2]
[359705988,1746268887211,-222.79164151,0.000199,2]
[359705989,1746268887229,-450.0,0.000199,2]
[359705990,1746268887241,-450.0,0.000199,2]
[359705991,1746268887254,-450.0,0.000199,2]
[359705992,1746268887271,-450.0,0.000199,2]
[359705993,1746268887281,-450.0,0.000199,2]
[359705994,1746268887293,-4403.71,0.000199,2]
[359705995,1746268887304,-450.0,0.000199,2]
[359705996,1746268887316,-275.91079116,0.000199,2]
[359705997,1746268887335,-450.0,0.000199,2]
[359705998,1746268887351,-603.06,0.000199,2]
[359705999,1746268887367,-450.0,0.000199,2]
[359706000,1746268887378,-450.0,0.000199,2]
[359706001,1746268887395,-450.0,0.000199,2]
[359706002,1746268887406,-450.0,0.000199,2]
[359706003,1746268887416,-450.0,0.000199,2]
[359706004,1746268887427,-450.0,0.000199,2]
[359706005,1746268887438,-450.0,0.000199,2]
[359706006,1746268887457,-450.0,0.000199,2]
[359706007,1746268887472,-450.0,0.000199,2]
[359706008,1746268887482,-450.0,0.000199,2]
[359706009,1746268887530,-450.0,0.000199,2]
[359706010,1746268887593,-450.0,0.000199,2]
[359706011,1746268887612,-450.0,0.000199,2]
[359706012,1746268887623,-450.0,0.000199,2]
[359706013,1746268887634,-1039.2,0.000199,2]
[359706014,1746268887644,-450.0,0.000199,2]
[359706015,1746268887659,-473.37015512,0.000199,2]
[359706016,1746268887683,-450.0,0.00019743,2]
[359706017,1746268887693,-50.0,0.000199,2]
[359706018,1746268887704,-190.19761816,0.000199,2]
[359706019,1746268887714,-450.0,0.000199,2]
[359706020,1746268887725,-450.0,0.000199,2]
[359706021,1746268887741,-450.0,0.000199,2]
[359706022,1746268887759,-450.0,0.000199,2]
[359706023,1746268887771,-496.15403073,0.000199,2]
[359706024,1746268887782,-450.0,0.000199,2]
[359706025,1746268887793,-450.0,0.000199,2]
[359706026,1746268887811,-450.0,0.000199,2]
[359706027,1746268887826,-450.0,0.000199,2]
[359706028,1746268887843,-450.0,0.000199,2]
[359706029,1746268887860,-450.0,0.00019742,2]
[359706030,1746268887876,-450.0,0.000199,2]
[359706031,1746268887887,-603.59,0.000199,2]
[359706032,1746268887902,-662.49,0.000199,2]
[359706033,1746268887919,-450.0,0.000199,2]
[359706034,1746268887934,-450.0,0.000199,2]
[359706035,1746268887945,-590.83,0.000199,2]
[359706036,1746268887960,-674.77,0.000199,2]
[359706037,1746268887971,-450.0,0.000199,2]
[359706038,1746268887987,-450.0,0.000199,2]
[359706039,1746268888003,-450.0,0.000199,2]
[359706040,1746268888015,-1075.96,0.000199,2]
[359706041,1746268888027,-517.44,0.000199,2]
[359706042,1746268888043,-450.0,0.000199,2]
[359706043,1746268888055,-450.0,0.000199,2]
[359706044,1746268888074,-1562.44,0.000199,2]
[359706045,1746268888090,-450.0,0.000199,2]
[359706046,1746268888101,-450.0,0.000199,2]
[359706047,1746268888122,-450.0,0.000199,2]
[359706048,1746268888133,-450.0,0.000199,2]
[359706049,1746268888144,-450.0,0.000199,2]
[359706050,1746268888169,-450.0,0.000199,2]
[359706051,1746268888181,-450.0,0.000199,2]
[359706052,1746268888195,-569.26,0.000199,2]
[359706053,1746268888207,-450.0,0.000199,2]
[359706054,1746268888218,-450.0,0.000199,2]
[359706055,1746268888229,-450.0,0.000199,2]
[359706056,1746268888240,-450.0,0.000199,2]
[359706057,1746268888255,-450.0,0.000199,2]
[359706058,1746268888266,-450.0,0.000199,2]
[359706059,1746268888284,-450.0,0.000199,2]
[359706060,1746268888295,-450.0,0.000199,2]
[359706061,1746268888310,-450.0,0.000199,2]
[359706062,1746268888321,-500.07331419,0.000199,2]
[359706063,1746268888333,-450.0,0.000199,2]
[359706064,1746268888344,-450.0,0.000199,2]
[359706065,1746268888355,-450.0,0.000199,2]
[359706066,1746268888370,-450.0,0.000199,2]
[359706067,1746268888381,-655.29,0.000199,2]
[359706068,1746268888393,-450.0,0.000199,2]
[359706069,1746268888414,-450.0,0.00019742,2]
[359706070,1746268888426,-450.0,0.000199,2]
[359706071,1746268888437,-450.0,0.000199,2]
[359706072,1746268888448,-450.0,0.000199,2]
[359706073,1746268888464,-576.6,0.000199,2]
[359706074,1746268888482,-594.95,0.000199,2]
[359706075,1746268888493,-475.65,0.000199,2]
[359706076,1746268888510,-450.0,0.000199,2]
[359706077,1746268888522,-450.0,0.000199,2]
[359706078,1746268888533,-450.0,0.000199,2]
[359706079,1746268888544,-450.0,0.000199,2]
[359706080,1746268888557,-1012.53,0.000199,2]
[359706081,1746268888569,-450.0,0.000199,2]
[359706082,1746268888580,-450.0,0.000199,2]
[359706083,1746268888595,-450.0,0.000199,2]
[359706084,1746268888610,-706.78,0.000199,2]
[359706085,1746268888635,-450.0,0.000199,2]
[359706086,1746268888671,-450.0,0.000199,2]
[359706087,1746268888693,-450.0,0.00019743,2]
[359706088,1746268888704,-450.0,0.000199,2]
[359706089,1746268888715,-450.0,0.000199,2]
[359706090,1746268888726,-450.0,0.000199,2]
[359706091,1746268888747,-450.0,0.00019743,2]
[359706092,1746268888756,-39.16,0.000199,2]
[359706093,1746268888768,-1329.5,0.000199,2]
[359706094,1746268888779,-450.0,0.000199,2]
[359706095,1746268888790,-450.0,0.000199,2]
[359706096,1746268888806,-450.0,0.000199,2]
[359706097,1746268888826,-1250.66,0.000199,2]
[359706098,1746268888838,-450.0,0.000199,2]
[359706099,1746268888850,-450.0,0.000199,2]
[359706100,1746268888867,-577.03,0.000199,2]
[359706101,1746268888883,-450.0,0.000199,2]
[359706102,1746268888894,-450.0,0.000199,2]
[359706103,1746268888918,-450.0,0.00019743,2]
[359706104,1746268888929,-450.0,0.000199,2]
[359706105,1746268888940,-631.93,0.000199,2]
[359706106,1746268888956,-540.47033329,0.000199,2]
[359706107,1746268888968,-450.0,0.000199,2]
[359706108,1746268888984,-464.09,0.000199,2]
[359706109,1746268888999,-450.0,0.000199,2]
[359706110,1746268889011,-450.0,0.000199,2]
[359706111,1746268889022,-463.27,0.000199,2]
[359706112,1746268889033,-3148.19,0.000199,2]
[359706113,1746268889044,-450.0,0.000199,2]
[359706114,1746268889063,-508.15,0.000199,2]
[359706115,1746268889075,-500.0,0.000199,2]
[359706116,1746268889092,-450.0,0.000199,2]
[359706117,1746268889103,-450.0,0.000199,2]
[359706118,1746268889124,-468.08,0.000199,2]
[359706119,1746268889136,-450.0,0.000199,2]
[359706120,1746268889147,-477.12,0.000199,2]
[359706121,1746268889163,-904.56,0.000199,2]
[359706122,1746268889175,-450.0,0.000199,2]
[359706123,1746268889186,-450.0,0.000199,2]
[359706124,1746268889200,-450.0,0.000199,2]
[359706125,1746268889220,-450.0,0.000199,2]
[359706126,1746268889233,-450.0,0.000199,2]
[359706127,1746268889244,-172.868004,0.000199,2]
[359706128,1746268889255,-164.912197,0.000199,2]
[359706129,1746268889266,-172.868004,0.000199,2]
[359706130,1746268889276,-164.912197,0.000199,2]
[359706131,1746268889288,-500.0,0.000199,2]
[359706132,1746268889303,-500.0,0.000199,2]
[359706133,1746268889320,-150.0,0.000199,2]
[359706134,1746268889331,-150.0,0.000199,2]
[359706135,1746268889342,-172.868004,0.000199,2]
[359706136,1746268889353,-172.868004,0.000199,2]
[359706137,1746268889364,-164.912197,0.000199,2]
[359706138,1746268889374,-172.868004,0.000199,2]
[359706139,1746268889392,-164.912197,0.000199,2]
[359706140,1746268889403,-394.2112028,0.000199,2]
[359706141,1746268889419,-12500.0,0.000199,2]
[359706142,1746268889430,-12500.0,0.000199,2]
[359706143,1746268889441,-4902.0062788,0.000199,2]
[359706144,1746268889451,-180.73022811,0.000199,2]
[359706145,1746268889460,-500.0,0.00019973,2]
[359706146,1746268889469,-3206.0,0.00019973,2]
[359706147,1746268889478,-500.0,0.00019973,2]
[359706148,1746268889487,-500.0,0.00019973,2]
[359706149,1746268889497,-500.0,0.00019973,2]
[359706150,1746268889506,-500.0,0.00019973,2]
[359706151,1746268889515,-500.0,0.00019973,2]
[359706152,1746268889525,-500.0,0.00019973,2]
[359706153,1746268889534,-500.0,0.00019973,2]
[359706154,1746268889544,-211.26349309,0.00019973,2]
[359706155,1746268898517,-450.0,0.00019742,2]
[359706156,1746268898545,-450.0,0.00019742,2]
[359706157,1746268898573,-450.0,0.00019742,2]
[359706158,1746268898600,-450.0,0.00019742,2]
[359706159,1746268898626,-450.0,0.00019742,2]
[359706160,1746268898656,-450.0,0.00019742,2]
[359706161,1746268898683,-450.0,0.00019742,2]
[359706162,1746268898710,-450.0,0.00019743,2]
[359706163,1746268898738,-450.0,0.00019743,2]
[359706164,1746268898769,-450.0,0.00019743,2]
[359706165,1746268898795,-450.0,0.00019743,2]
[359706166,1746268898823,-450.0,0.00019743,2]
[359706167,1746268898849,-450.0,0.00019743,2]
[359706168,1746268898875,-537.7,0.00019743,2]
[359706169,1746268898901,-450.0,0.00019743,2]
[359706170,1746268898927,-473.46346792,0.00019743,2]
[359706171,1746268898956,-450.0,0.00019743,2]
[359706172,1746268898982,-450.0,0.00019743,2]
[359706173,1746268899009,-450.0,0.00019743,2]
[359706174,1746268899035,-450.0,0.00019743,2]
[359706175,1746268899061,-450.0,0.00019743,2]
[359706176,1746268899088,-450.0,0.00019743,2]
[359706177,1746268899114,-12500.0,0.00019847,2]
[359706178,1746268899141,-288.73650691,0.00019973,2]
[359706179,1746268899166,-500.0,0.00019973,2]
[359706180,1746268899194,-500.0,0.00019973,2]
[359706181,1746268899220,-500.0,0.00019979,2]
[359706182,1746268899246,-556.17257505,0.00019985,2]
[359706183,1746268899274,-500.0,0.00019985,2]
[359706184,1746268899310,-500.0,0.00019985,2]
[359706185,1746268899337,-500.0,0.00019985,2]
[359706186,1746268899372,-500.0,0.00019985,2]
[359706187,1746268899400,-391.348057,0.00019985,2]
[359706188,1746268899436,-500.0,0.00019985,2]
[359706189,1746268899471,-500.0,0.00019985,2]
[359706190,1746268899506,-189.63784961,0.00019985,2]
[359706191,1746268899532,-706.78,0.00019985,2]
[359706192,1746268899558,-706.78,0.00019985,2]
[359706193,1746268899585,-500.0,0.00019985,2]
[359706194,1746268899612,-500.0,0.00019985,2]
[359706195,1746268899638,-6537.0843848,0.00019986,2]
[359706196,1746268899664,-77793.3646691,0.00019986,2]
[359706197,1746268899684,-450.0,0.00019986,2]
[359706198,1746268899695,-450.0,0.00019986,2]
[359706199,1746268899707,-450.0,0.00019986,2]
[359706200,1746268899717,-450.0,0.00019986,2]
[359706201,1746268899730,-450.0,0.00019986,2]
[359706202,1746268899741,-450.0,0.00019986,2]
[359706203,1746268899752,-450.0,0.00019986,2]
[359706204,1746268899768,-450.0,0.00019986,2]
[359706205,1746268899779,-450.0,0.00019986,2]
[359706206,1746268899790,-450.0,0.00019986,2]
[359706207,1746268899801,-450.0,0.00019986,2]
[359706208,1746268899812,-450.0,0.00019986,2]
[359706209,1746268899823,-450.0,0.00019986,2]
[359706210,1746268899838,-537.7,0.00019986,2]
[359706211,1746268899848,-450.0,0.00019986,2]
[359706212,1746268899863,-473.46346792,0.00019986,2]
[359706213,1746268900101,-450.0,0.00019986,2]
[359706214,1746268900161,-450.0,0.00019986,2]
[359706215,1746268900204,-450.0,0.00019986,2]
[359706216,1746268900215,-450.0,0.00019986,2]
[359706217,1746268900227,-450.0,0.00019986,2]
[359706218,1746268900239,-450.0,0.00019986,2]
[359706219,1746268900256,-450.0,0.00019743,2]
[359706220,1746268900265,-12050.0,0.00019986,2]
[359706221,1746268900276,-288.73650691,0.00019986,2]
[359706222,1746268900287,-500.0,0.00019986,2]
[359706223,1746268900299,-500.0,0.00019986,2]
[359706224,1746268900310,-500.0,0.00019986,2]
[359706225,1746268900324,-556.17257505,0.00019986,2]
[359706226,1746268900358,-500.0,0.00019986,2]
[359706227,1746268900372,-500.0,0.00019986,2]
[359706228,1746268900388,-500.0,0.00019986,2]
[359706229,1746268900404,-500.0,0.00019986,2]
[359706230,1746268900415,-391.348057,0.00019986,2]
[359706231,1746268900426,-500.0,0.00019986,2]
[359706232,1746268900451,-450.0,0.00019743,2]
[359706233,1746268900460,-50.0,0.00019986,2]
[359706234,1746268900479,-189.63784961,0.00019986,2]
[359706235,1746268900521,-706.78,0.00019986,2]
[359706236,1746268900532,-706.78,0.00019986,2]
[359706237,1746268900543,-500.0,0.00019986,2]
[359706238,1746268900553,-500.0,0.00019986,2]
[359706239,1746268900565,-6537.0843848,0.00019986,2]
[359706240,1746268900577,-77793.3646691,0.00019986,2]
[359706241,1746268900589,-18175.64365261,0.00019986,2]
[359706242,1746268900598,-5739.7960023,0.00019986,2]
[359706243,1746268900607,-163.2400741,0.00019986,2]
[359706244,1746268900616,-57535.25525021,0.00019986,2]
[359706245,1746268902921,-821.56,0.00019742,2]
[359706246,1746268902953,-450.0,0.00019743,2]
[359706247,1746268902980,-450.0,0.00019743,2]
[359706248,1746268903008,-450.0,0.00019743,2]
[359706249,1746268903036,-450.0,0.00019743,2]
[359706250,1746268903063,-450.00061829,0.00019743,2]
[359706251,1746268903092,-546.32,0.00019743,2]
[359706252,1746268903119,-23286.66479289,0.00019986,2]
[359706253,1746268903146,-1127.16527701,0.0001999,2]
[359706254,1746268903174,-1127.16527701,0.0001999,2]
[359706255,1746268903204,-1127.16527701,0.0001999,2]
[359706256,1746268903232,-706.78,0.00019998,2]
[359706257,1746268903261,-500.0,0.00019998,2]
[359706258,1746268903289,-167.33402183,0.00019999,2]
[359706259,1746268903317,-230.59730617,0.00019999,2]
[359706260,1746268903345,-192.18752968,0.00019999,2]
[359706261,1746268903373,-185.66158802,0.00019999,2]
[359706262,1746268903402,-600.0,0.00019999,2]
[359706263,1746268903439,-500.0,0.00019999,2]
[359706264,1746268903468,-211.88646736,0.00019999,2]
[359706265,1746268903498,-500.0,0.00019999,2]
[359706266,1746268903528,-500.0,0.00019999,2]
[359706267,1746268903556,-300.0,0.00019999,2]
[359706268,1746268903584,-500.0,0.00019999,2]
[359706269,1746268903609,-638.92218838,0.00019999,2]
[359706270,1746268903636,-1001.1282,0.00019999,2]
[359706271,1746268903663,-706.78,0.00019999,2]
[359706272,1746268903690,-706.78,0.00019999,2]
[359706273,1746268903717,-706.78,0.00019999,2]
[359706274,1746268903743,-706.78,0.00019999,2]
[359706275,1746268903771,-706.78,0.00019999,2]
[359706276,1746268903796,-706.78,0.00019999,2]
[359706277,1746268903823,-706.78,0.00019999,2]
[359706278,1746268903849,-706.78,0.00019999,2]
[359706279,1746268903876,-706.78,0.00019999,2]
[359706280,1746268903903,-706.78,0.00019999,2]
[359706281,1746268903928,-706.78,0.00019999,2]
[359706282,1746268903958,-706.78,0.00019999,2]
[359706283,1746268903984,-706.78,0.00019999,2]
[359706284,1746268904010,-706.78,0.00019999,2]
[359706285,1746268904037,-706.78,0.00019999,2]
[359706286,1746268904067,-706.78,0.00019999,2]
[359706287,1746268904093,-706.78,0.00019999,2]
[359706288,1746268904119,-706.78,0.00019999,2]
[359706289,1746268904147,-706.78,0.00019999,2]
[359706290,1746268904177,-706.89951746,0.00019999,2]
[359706291,1746268904208,-500.0,0.00019999,2]
[359706292,1746268904234,-511.83843119,0.00019999,2]
[359706293,1746268904262,-1263.0,0.0002,2]
[359706294,1746268904281,-821.56,0.0002,2]
[359706295,1746268904297,-450.0,0.00019743,2]
[359706296,1746268904308,-450.0,0.0002,2]
[359706297,1746268904320,-450.0,0.0002,2]
[359706298,1746268904335,-450.0,0.0002,2]
[359706299,1746268904351,-450.00061829,0.0002,2]
[359706300,1746268904367,-546.32,0.0002,2]
[359706301,1746268904387,-23286.66479289,0.0002,2]
[359706302,1746268904399,-1127.16527701,0.0002,2]
[359706303,1746268904410,-1127.16527701,0.0002,2]
[359706304,1746268904425,-1127.16527701,0.0002,2]
[359706305,1746268904435,-706.78,0.0002,2]
[359706306,1746268904447,-500.0,0.0002,2]
[359706307,1746268904466,-167.33402183,0.0002,2]
[359706308,1746268904508,-230.59730617,0.0002,2]
[359706309,1746268904530,-192.18752968,0.0002,2]
[359706310,1746268904541,-185.66158802,0.0002,2]
[359706311,1746268904561,-600.0,0.0002,2]
[359706312,1746268904572,-500.0,0.0002,2]
[359706313,1746268904584,-211.88646736,0.0002,2]
[359706314,1746268904595,-500.0,0.0002,2]
[359706315,1746268904607,-500.0,0.0002,2]
[359706316,1746268904635,-300.0,0.0002,2]
[359706317,1746268904657,-500.0,0.0002,2]
[359706318,1746268904668,-638.92218838,0.0002,2]
[359706319,1746268904679,-1001.1282,0.0002,2]
[359706320,1746268904690,-706.78,0.0002,2]
[359706321,1746268904704,-706.78,0.0002,2]
[359706322,1746268904720,-706.78,0.0002,2]
[359706323,1746268904734,-706.78,0.0002,2]
[359706324,1746268904761,-450.0,0.00019743,2]
[359706325,1746268904772,-256.78,0.0002,2]
[359706326,1746268904786,-706.78,0.0002,2]
[359706327,1746268904814,-706.78,0.0002,2]
[359706328,1746268904828,-706.78,0.0002,2]
[359706329,1746268904842,-706.78,0.0002,2]
[359706330,1746268904856,-706.78,0.0002,2]
[359706331,1746268904871,-706.78,0.0002,2]
[359706332,1746268904889,-706.78,0.0002,2]
[359706333,1746268904907,-706.78,0.0002,2]
[359706334,1746268904919,-706.78,0.0002,2]
[359706335,1746268904939,-706.78,0.0002,2]
[359706336,1746268904964,-706.78,0.0002,2]
[359706337,1746268904978,-706.78,0.0002,2]
[359706338,1746268904991,-706.78,0.0002,2]
[359706339,1746268905011,-706.78,0.0002,2]
[359706340,1746268905027,-706.89951746,0.0002,2]
[359706341,1746268905042,-500.0,0.0002,2]
[359706342,1746268905055,-511.83843119,0.0002,2]